bitfinex-derivatives/quotes_SOLF0:USTF0_20260312
["timestamp","ask_amount","ask_price","bid_price","bid_amount"]
[1773327774440,10.5496686,85.502,85.441,21.17667717]
[1773327775039,10.5496686,85.502,85.442,10.64567717]
[1773327775740,21.0736686,85.502,85.443,21.17667717]
[1773327775942,10.5496686,85.502,85.443,21.17667717]
[1773327776840,10.525,85.494,85.443,21.17667717]
[1773327777044,9.384525,85.52,85.455,10.64567717]
[1773327777250,10.5496686,85.519,85.455,10.64567717]
[1773327777639,10.5496686,85.519,85.466,10.64567717]
[1773327777946,10.5496686,85.539,85.466,10.64567717]
[1773327778446,10.52,85.532,85.478,10.64567717]
[1773327778647,10.5496686,85.539,85.451,10.64567717]
[1773327778847,10.5496686,85.523,85.463,10.529]
[1773327779040,10.5496686,85.523,85.463,10.64567717]
[1773327779642,10.522,85.522,85.471,10.528]
[1773327779843,10.5496686,85.523,85.463,10.64567717]
[1773327780043,10.523,85.514,85.463,10.64567717]
[1773327780549,9.384525,85.54,85.463,10.64567717]
[1773327780847,10.52,85.531,85.481,10.527]
[1773327781349,10.5496686,85.539,85.463,10.64567717]
[1773327781744,10.5496686,85.559,85.465,10.64567717]
[1773327781944,10.5496686,85.559,85.464,40.5]
[1773327781945,10.5496686,85.559,85.481,10.64567717]
[1773327782458,10.519,85.545,85.481,10.64567717]
[1773327782645,10.5496686,85.559,85.481,10.64567717]
[1773327782942,22.11667233,85.645,85.45,9.384525]
[1773327782943,10.522,85.516,85.462,10.64567717]
[1773327783147,10.5496686,85.539,85.462,10.64567717]
[1773327783646,10.5496686,85.521,85.462,10.64567717]
[1773327784649,10.5496686,85.521,85.47,10.528]
[1773327784838,9.384525,85.54,85.45,9.384525]
[1773327784839,10.5496686,85.539,85.471,10.64567717]
[1773327787250,10.523,85.513,85.472,10.528]
[1773327789051,10.523,85.513,85.471,10.64567717]
[1773327789350,10.523,85.507,85.454,40.5]
[1773327789551,10.523,85.507,85.454,51.14567717]
[1773327789746,10.522,85.516,85.466,10.64567717]
[1773327790649,9.37626963,85.54,85.466,10.64567717]
[1773327790650,10.523,85.509,85.47,10.528]
[1773327791046,10.523,85.509,85.466,10.64567717]
[1773327791446,19.92593823,85.54,85.466,10.64567717]
[1773327791646,10.5496686,85.539,85.466,10.64567717]
[1773327792052,10.5496686,85.537,85.466,10.64567717]
[1773327792350,10.5496686,85.518,85.466,10.64567717]
[1773327792553,10.5496686,85.518,85.455,10.53]
[1773327793449,10.5496686,85.501,85.421,10.64567717]
[1773327793651,163.621,85.551,85.404,10.64567717]
[1773327793652,10.5496686,85.479,85.404,10.64567717]
[1773327793849,10.5496686,85.479,85.405,51.14567717]
[1773327794050,10.5496686,85.479,85.408,10.64567717]
[1773327794555,10.53,85.457,85.41,10.64567717]
[1773327795058,10.53,85.45,85.41,10.64567717]
[1773327795257,10.5496686,85.479,85.41,10.64567717]
[1773327795457,10.529,85.46,85.411,10.535]
[1773327795663,10.5496686,85.479,85.412,10.64567717]
[1773327796157,10.5496686,85.497,85.424,10.64567717]
[1773327797752,10.525,85.492,85.439,10.64567717]
[1773327798455,10.525,85.492,85.41,28.85025195]
[1773327798456,10.5496686,85.532,85.445,10.64567717]
[1773327798655,10.5496686,85.532,85.447,10.64567717]
[1773327799051,10.523,85.513,85.46,21.17467717]
[1773327800056,10.524,85.506,85.46,21.17467717]
[1773327800356,10.524,85.506,85.406,35.12]
[1773327800357,10.5496686,85.51,85.441,10.64567717]
[1773327800658,10.524,85.5,85.441,10.64567717]
[1773327801357,10.523,85.508,85.452,10.50549948]
[1773327801857,10.523,85.508,85.456,10.50549948]
[1773327802253,9.92571045,85.527,85.474,10.527]
[1773327802557,9.92571045,85.546,85.475,10.50549948]
[1773327803056,10.522,85.519,85.476,10.527]
[1773327803453,9.92571045,85.546,85.476,10.50549948]
[1773327803959,10.521,85.529,85.476,10.50549948]
[1773327804263,9.92571045,85.546,85.476,10.50549948]
[1773327805550,9.92571045,85.564,85.481,10.50549948]
[1773327805750,9.92571045,85.564,85.483,10.50549948]
[1773327806356,9.92571045,85.559,85.484,40.52]
[1773327806747,10.519,85.545,85.498,10.524]
[1773327806951,10.519,85.545,85.499,10.50549948]
[1773327807256,10.518,85.553,85.501,10.524]
[1773327807456,9.92571045,85.559,85.502,10.50549948]
[1773327808062,9.92571045,85.559,85.503,10.524]
[1773327808359,9.92571045,85.559,85.503,21.02949948]
[1773327808557,9.92571045,85.559,85.503,10.50549948]
[1773327808857,10.519,85.541,85.503,10.50549948]
[1773327810360,9.92571045,85.541,85.486,10.50549948]
[1773327810961,10.522,85.517,85.469,10.50549948]
[1773327811258,10.522,85.517,85.47,10.50549948]
[1773327811855,10.522,85.517,85.44,9.37626963]
[1773327811856,9.92571045,85.523,85.452,10.50549948]
[1773327812261,9.92571045,85.523,85.454,10.50549948]
[1773327812563,9.92571045,85.541,85.461,10.50549948]
[1773327812755,9.92571045,85.541,85.463,10.50549948]
[1773327813352,10.521,85.528,85.483,10.526]
[1773327813662,9.92571045,85.541,85.48,10.50549948]
[1773327814158,10.523,85.513,85.466,10.528]
[1773327814466,9.92571045,85.559,85.467,10.50549948]
[1773327814964,9.92571045,85.542,85.477,10.50549948]
[1773327815559,9.92571045,85.523,85.46,10.529]
[1773327815755,9.92571045,85.523,85.46,10.50549948]
[1773327815965,9.92571045,85.523,85.46,51.00549948]
[1773327816162,9.92571045,85.523,85.461,10.50549948]
[1773327817365,9.92571045,85.523,85.452,10.50549948]
[1773327817959,10.523,85.508,85.459,21.03449948]
[1773327819070,10.523,85.508,85.463,10.529]
[1773327819362,9.92571045,85.549,85.464,10.50549948]
[1773327819567,9.92571045,85.549,85.466,10.50549948]
[1773327820972,9.92571045,85.549,85.472,10.50549948]
[1773327821472,10.522,85.521,85.479,10.527]
[1773327822876,10.522,85.521,85.479,21.03249948]
[1773327823483,10.33577439,85.569,85.486,9.66547744]
[1773327824175,10.52,85.539,85.498,10.524]
[1773327826780,10.52,85.539,85.49,20.19047744]
[1773327826985,10.33577439,85.548,85.49,20.19047744]
[1773327826986,10.33577439,85.548,85.49,9.66547744]
[1773327827481,10.52,85.531,85.49,9.66547744]
[1773327827682,10.33577439,85.548,85.49,9.66547744]
[1773327828483,10.519,85.539,85.49,20.19047744]
[1773327828683,10.519,85.539,85.49,9.66547744]
[1773327829282,10.519,85.539,85.491,40.5]
[1773327829487,10.33577439,85.565,85.5,9.66547744]
[1773327829987,10.33577439,85.565,85.501,10.524]
[1773327830180,10.33577439,85.565,85.5,9.66547744]
[1773327831296,9.99202767,85.58,85.502,10.0765985]
[1773327831891,9.99202767,85.6,85.525,10.0765985]
[1773327832083,9.99202767,85.619,85.541,10.0765985]
[1773327832279,10.51,85.618,85.571,10.515]
[1773327832490,9.99202767,85.649,85.569,10.0765985]
[1773327833192,10.509,85.627,85.57,20.5925985]
[1773327833895,10.509,85.627,85.573,10.515]
[1773327834088,9.99202767,85.654,85.574,50.5765985]
[1773327834292,9.99202767,85.654,85.581,10.0765985]
[1773327834688,10.506,85.652,85.581,10.0765985]
[1773327835188,9.99202767,85.651,85.581,10.0765985]
[1773327835391,9.99202767,85.69,85.581,10.0765985]
[1773327835693,9.99202767,85.679,85.591,10.0765985]
[1773327836086,10.504,85.667,85.614,10.51]
[1773327836283,10.504,85.667,85.582,40.5]
[1773327836284,9.99202767,85.724,85.631,10.0765985]
[1773327836488,9.99202767,85.724,85.63,9.37626963]
[1773327836489,9.99202767,85.724,85.633,10.0765985]
[1773327836688,9.99202767,85.724,85.639,10.0765985]
[1773327837087,14.79512047,85.74,85.671,10.0765985]
[1773327837287,9.99202767,85.739,85.671,10.0765985]
[1773327837486,9.99202767,85.739,85.673,10.0765985]
[1773327837692,9.99202767,85.739,85.674,40.48]
[1773327837889,10.495,85.738,85.674,50.5565985]
[1773327838087,9.99202767,85.739,85.674,50.5565985]
[1773327838392,9.99202767,85.739,85.676,10.0765985]
[1773327838591,14.79512047,85.74,85.691,10.0765985]
[1773327838990,14.79512047,85.74,85.692,10.0765985]
[1773327840289,14.79512047,85.74,85.674,10.0765985]
[1773327840290,9.99202767,85.739,85.674,10.0765985]
[1773327840786,9.99202767,85.739,85.66,9.37626963]
[1773327840787,10.495,85.739,85.681,10.0765985]
[1773327840987,9.99202767,85.738,85.661,10.0765985]
[1773327841388,14.79512047,85.74,85.661,10.0765985]
[1773327841583,14.79512047,85.74,85.671,10.0765985]
[1773327841786,14.79512047,85.74,85.673,10.0765985]
[1773327841989,14.79512047,85.74,85.688,10.0765985]
[1773327843395,14.79512047,85.74,85.682,40.46]
[1773327843396,14.79512047,85.74,85.691,10.0765985]
[1773327843996,14.79512047,85.74,85.692,40.44]
[1773327844290,10.496,85.727,85.672,10.0765985]
[1773327844498,9.99202767,85.739,85.672,10.0765985]
[1773327844992,14.79512047,85.74,85.672,10.0765985]
[1773327845296,14.79512047,85.74,85.681,10.0765985]
[1773327845697,14.79512047,85.74,85.687,10.0765985]
[1773327847391,14.79512047,85.74,85.647,11.9295572]
[1773327847392,9.99202767,85.739,85.681,40.44]
[1773327847588,14.79512047,85.74,85.701,10.0765985]
[1773327847998,14.79512047,85.74,85.702,40.44]
[1773327849595,14.79512047,85.74,85.704,10.0765985]
[1773327850188,14.79512047,85.74,85.708,10.499]
[1773327850499,14.79512047,85.74,85.68,9.32366611]
[1773327850500,14.79512047,85.74,85.68,10.0765985]
[1773327850691,14.79512047,85.74,85.682,10.0765985]
[1773327850898,14.79512047,85.74,85.67,9.32366611]
[1773327850899,9.99202767,85.739,85.683,40.42]
[1773327851192,10.496,85.73,85.683,40.42]
[1773327851399,9.99202767,85.739,85.683,40.42]
[1773327851995,9.99202767,85.739,85.684,40.42]
[1773327852187,10.495,85.738,85.684,40.42]
[1773327852395,10.495,85.738,85.685,10.0765985]
[1773327854195,14.79512047,85.74,85.684,40.42]
[1773327854196,10.496,85.729,85.684,40.42]
[1773327854805,9.99202767,85.729,85.672,40.42]
[1773327854998,9.99202767,85.729,85.673,10.0765985]
[1773327856503,9.99202767,85.729,85.663,10.504]
[1773327856504,9.99202767,85.729,85.665,40.42]
[1773327856701,9.99202767,85.729,85.655,10.0765985]
[1773327856897,9.99202767,85.729,85.656,40.42]
[1773327857205,9.99202767,85.729,85.655,10.0765985]
[1773327857499,10.496,85.727,85.67,10.0765985]
[1773327857697,9.99202767,85.729,85.67,10.0765985]
[1773327859000,9.99202767,85.729,85.671,40.42]
[1773327859204,10.497,85.72,85.671,50.4965985]
[1773327859395,9.99202767,85.729,85.672,10.0765985]
[1773327860000,9.99202767,85.729,85.654,10.0765985]
[1773327860209,14.79512047,85.74,85.669,10.0765985]
[1773327860404,9.89658085,85.739,85.669,10.0765985]
[1773327860907,10.496,85.73,85.669,20.5795985]
[1773327861307,9.89658085,85.739,85.67,40.42]
[1773327861511,10.497,85.72,85.67,40.42]
[1773327861805,9.89658085,85.739,85.669,10.0765985]
[1773327862110,9.89658085,85.739,85.658,40.42]
[1773327862308,9.89658085,85.739,85.654,40.42]
[1773327862506,10.498,85.714,85.654,40.42]
[1773327862704,9.89658085,85.717,85.654,40.42]
[1773327863116,9.89658085,85.717,85.655,10.16256258]
[1773327863615,9.89658085,85.739,85.655,10.16256258]
[1773327864107,9.89658085,85.739,85.665,10.16256258]
[1773327864707,9.89658085,85.713,85.662,40.42]
[1773327864915,9.89658085,85.713,85.645,10.16256258]
[1773327865114,9.89658085,85.713,85.652,10.16256258]
[1773327865706,9.89658085,85.713,85.621,10.16256258]
[1773327865904,9.89658085,85.699,85.623,10.16256258]
[1773327866314,10.503,85.671,85.626,10.509]
[1773327866506,10.503,85.671,85.623,10.16256258]
[1773327866711,10.503,85.671,85.624,40.42]
[1773327867106,10.502,85.68,85.626,10.509]
[1773327867308,9.89658085,85.699,85.627,10.16256258]
[1773327867717,9.89658085,85.699,85.647,10.16256258]
[1773327867918,10.501,85.692,85.647,10.16256258]
[1773327868116,9.89658085,85.699,85.626,10.509]
[1773327868313,9.89658085,85.699,85.625,10.16256258]
[1773327868618,9.89658085,85.739,85.641,10.16256258]
[1773327868915,9.89658085,85.739,85.671,10.16256258]
[1773327869313,10.499,85.705,85.671,10.16256258]
[1773327869620,9.89658085,85.739,85.671,10.16256258]
[1773327869919,10.497,85.722,85.674,10.16256258]
[1773327870113,9.89658085,85.739,85.674,10.16256258]
[1773327870320,9.89658085,85.739,85.676,10.16256258]
[1773327870513,10.496,85.731,85.684,10.16256258]
[1773327870723,14.79512047,85.74,85.684,10.16256258]
[1773327871013,14.79512047,85.74,85.685,40.42]
[1773327871218,14.79512047,85.74,85.686,10.16256258]
[1773327871916,14.79512047,85.74,85.695,10.5]
[1773327872119,14.79512047,85.74,85.686,10.16256258]
[1773327872520,9.89658085,85.739,85.687,40.42]
[1773327873013,14.79512047,85.74,85.689,10.16256258]
[1773327873221,14.79512047,85.74,85.691,10.16256258]
[1773327873518,14.79512047,85.74,85.693,10.16256258]
[1773327873710,14.79512047,85.74,85.705,10.499]
[1773327874518,9.89658085,85.779,85.714,10.16256258]
[1773327874721,9.89658085,85.779,85.71,9.32366611]
[1773327874722,9.89658085,85.779,85.716,10.16256258]
[1773327875109,20.38658085,85.779,85.716,10.16256258]
[1773327875309,9.89658085,85.779,85.716,10.16256258]
[1773327876220,9.89658085,85.779,85.715,40.42]
[1773327876417,9.89658085,85.769,85.7,10.16256258]
[1773327876614,9.89658085,85.769,85.701,40.4]
[1773327877015,9.89658085,85.769,85.702,40.4]
[1773327877320,9.89658085,85.789,85.703,10.16256258]
[1773327877621,9.89658085,85.769,85.703,10.16256258]
[1773327878216,10.494,85.748,85.703,20.66156258]
[1773327878421,9.89658085,85.748,85.682,10.16256258]
[1773327878616,9.89658085,85.748,85.683,40.4]
[1773327878821,9.89658085,85.748,85.696,10.5]
[1773327879221,9.89658085,85.748,85.684,10.16256258]
[1773327879817,9.89658085,85.748,85.685,40.4]
[1773327880317,9.89658085,85.748,85.686,40.4]
[1773327880318,10.496,85.73,85.686,40.4]
[1773327880517,10.496,85.73,85.66,9.32366611]
[1773327880518,9.89658085,85.739,85.675,40.4]
[1773327882620,10.497,85.724,85.675,40.4]
[1773327884427,10.496,85.732,85.676,9.90962864]
[1773327885122,10.495,85.741,85.691,10.501]
[1773327885320,10.24202929,85.759,85.676,9.90962864]
[1773327885720,10.495,85.742,85.698,10.5]
[1773327885928,10.24202929,85.759,85.698,10.5]
[1773327886125,10.24202929,85.759,85.681,9.90962864]
[1773327886720,10.24202929,85.759,85.68,9.32366611]
[1773327886721,10.24202929,85.759,85.696,9.90962864]
[1773327886919,10.24202929,85.759,85.697,40.4]
[1773327887321,10.24202929,85.759,85.698,40.4]
[1773327887720,10.24202929,85.759,85.698,50.30962864]
[1773327888022,10.493,85.751,85.7,9.90962864]
[1773327888224,10.24202929,85.779,85.7,9.90962864]
[1773327888416,10.489,85.786,85.738,10.495]
[1773327888618,10.24202929,85.799,85.739,40.4]
[1773327888928,10.24202929,85.799,85.721,9.90962864]
[1773327888929,10.24202929,85.799,85.734,40.4]
[1773327889529,10.24202929,85.799,85.735,40.4]
[1773327890031,10.488,85.798,85.753,10.493]
[1773327890422,10.488,85.798,85.741,9.90962864]
[1773327891127,10.489,85.79,85.742,40.4]
[1773327891924,10.24202929,85.799,85.741,9.90962864]
[1773327892123,10.24202929,85.799,85.743,40.4]
[1773327892527,10.24202929,85.799,85.726,10.22216873]
[1773327892830,10.24202929,85.799,85.727,40.4]
[1773327893222,10.489,85.786,85.735,10.495]
[1773327893725,10.489,85.786,85.7,9.32366611]
[1773327893726,10.25932846,85.789,85.71,10.22216873]
[1773327894228,10.493,85.758,85.711,40.4]
[1773327894428,10.25932846,85.768,85.711,40.4]
[1773327894827,10.492,85.762,85.711,50.898]
[1773327895130,10.25932846,85.768,85.711,50.898]
[1773327895331,10.25932846,85.768,85.711,40.4]
[1773327896227,10.494,85.748,85.709,40.4]
[1773327896427,10.25932846,85.807,85.71,10.22216873]
[1773327896730,10.25932846,85.799,85.712,10.22216873]
[1773327897130,10.493,85.759,85.715,10.498]
[1773327897324,10.25932846,85.779,85.706,40.4]
[1773327897529,10.25932846,85.779,85.681,10.22216873]
[1773327897730,10.25932846,85.779,85.683,10.22216873]
[1773327898230,10.493,85.758,85.714,10.498]
[1773327898531,10.493,85.758,85.702,10.22216873]
[1773327898721,10.25932846,85.779,85.712,40.4]
[1773327898722,10.494,85.748,85.712,40.4]
[1773327898926,10.25932846,85.779,85.712,40.4]
[1773327899735,10.25932846,85.779,85.702,10.22216873]
[1773327899925,10.25932846,85.759,85.695,40.4]
[1773327900125,10.495,85.739,85.695,40.4]
[1773327900427,10.25932846,85.759,85.696,10.22216873]
[1773327901232,10.25932846,85.759,85.688,40.4]
[1773327901433,10.497,85.724,85.686,40.4]
[1773327901931,10.25932846,85.759,85.686,40.4]
[1773327902236,10.25932846,85.759,85.687,10.22216873]
[1773327902531,10.25932846,85.779,85.687,10.22216873]
[1773327902725,10.25932846,85.779,85.703,10.22216873]
[1773327903231,10.494,85.75,85.704,10.499]
[1773327903431,10.494,85.75,85.703,10.22216873]
[1773327904225,10.494,85.743,85.703,10.22216873]
[1773327904428,10.25932846,85.747,85.7,40.4]
[1773327905128,10.494,85.744,85.701,10.22216873]
[1773327905330,10.25932846,85.759,85.701,10.22216873]
[1773327905538,10.25932846,85.759,85.681,10.22216873]
[1773327905936,10.25932846,85.759,85.682,40.4]
[1773327906238,10.495,85.737,85.684,10.22216873]
[1773327906537,10.25932846,85.759,85.684,10.22216873]
[1773327906933,10.25932846,85.759,85.706,10.22216873]
[1773327907339,10.25932846,85.759,85.691,10.22216873]
[1773327907538,10.25932846,85.759,85.693,10.22216873]
[1773327908136,10.496,85.727,85.693,10.22216873]
[1773327908334,10.25932846,85.759,85.693,10.22216873]
[1773327908841,10.25932846,85.759,85.671,10.22216873]
[1773327909036,10.25932846,85.759,85.673,10.22216873]
[1773327909234,10.25932846,85.739,85.673,10.22216873]
[1773327909830,9.33275503,85.74,85.673,10.22216873]
[1773327909831,10.499,85.709,85.673,10.22216873]
[1773327910032,10.499,85.709,85.668,40.4]
[1773327910633,10.5,85.701,85.668,40.4]
[1773327911038,10.25932846,85.723,85.668,40.4]
[1773327911239,10.25932846,85.723,85.668,10.22216873]
[1773327911840,10.25932846,85.74,85.668,10.22216873]
[1773327912243,10.25932846,85.74,85.67,10.22216873]
[1773327912945,10.25932846,85.74,85.679,10.502]
[1773327913244,10.25932846,85.74,85.67,10.22216873]
[1773327914442,10.25932846,85.74,85.678,10.22216873]
[1773327914944,10.497,85.725,85.679,10.502]
[1773327915442,10.497,85.725,85.679,10.22216873]
[1773327916347,10.25932846,85.74,85.679,10.22216873]
[1773327916648,10.25932846,85.74,85.675,10.22216873]
[1773327916951,10.497,85.721,85.677,10.22216873]
[1773327917446,10.25932846,85.74,85.677,10.22216873]
[1773327917849,10.497,85.722,85.681,10.502]
[1773327918143,10.497,85.722,85.677,10.22216873]
[1773327918351,10.25932846,85.74,85.677,10.22216873]
[1773327918547,10.498,85.715,85.677,10.22216873]
[1773327919253,10.25932846,85.74,85.677,10.22216873]
[1773327920048,10.25932846,85.72,85.645,28.93934287]
[1773327920355,9.89974465,85.709,85.639,10.22216873]
[1773327920954,9.89974465,85.691,85.624,10.509]
[1773327921158,9.89974465,85.691,85.625,49.93907982]
[1773327921456,9.89974465,85.691,85.625,9.53907982]
[1773327921652,9.89974465,85.691,85.626,40.4]
[1773327922156,9.89974465,85.691,85.625,9.53907982]
[1773327922356,9.89974465,85.691,85.626,40.4]
[1773327922657,9.89974465,85.691,85.627,49.93907982]
[1773327922856,9.89974465,85.691,85.628,40.4]
[1773327923150,9.89974465,85.709,85.629,9.53907982]
[1773327923358,9.89974465,85.709,85.631,9.53907982]
[1773327923955,10.501,85.69,85.645,9.53907982]
[1773327924156,9.89974465,85.709,85.645,9.53907982]
[1773327924355,9.89974465,85.709,85.646,40.4]
[1773327925459,9.89974465,85.709,85.627,9.53907982]
[1773327925753,9.89974465,85.689,85.624,40.4]
[1773327925958,10.505,85.658,85.624,40.4]
[1773327926958,10.506,85.651,85.619,40.4]
[1773327927351,10.505,85.659,85.619,40.4]
[1773327928053,10.505,85.659,85.612,9.53907982]
[1773327928260,10.506,85.652,85.613,40.42]
[1773327928652,10.504,85.662,85.613,40.42]
[1773327928958,9.89974465,85.673,85.613,49.95907982]
[1773327929160,9.89974465,85.673,85.615,9.53907982]
[1773327929460,9.89974465,85.69,85.621,9.53907982]
[1773327929663,9.89974465,85.69,85.623,9.53907982]
[1773327930150,9.89974465,85.75,85.641,9.53907982]
[1773327930353,9.89974465,85.739,85.661,9.53907982]
[1773327930762,9.89974465,85.739,85.663,9.53907982]
[1773327931162,10.497,85.72,85.671,9.53907982]
[1773327931461,9.89974465,85.739,85.665,40.42]
[1773327931662,10.499,85.71,85.666,9.53907982]
[1773327931858,9.89974465,85.739,85.666,9.53907982]
[1773327932864,10.498,85.718,85.669,9.53907982]
[1773327933464,10.496,85.727,85.671,9.53907982]
[1773327933966,9.89974465,85.739,85.671,9.53907982]
[1773327934556,9.89974465,85.739,85.673,9.53907982]
[1773327934960,10.497,85.72,85.673,9.53907982]
[1773327935969,10.498,85.712,85.673,9.53907982]
[1773327936268,9.89974465,85.739,85.674,40.42]
[1773327937168,9.89974465,85.756,85.679,9.53907982]
[1773327938570,9.89974465,85.756,85.681,9.53907982]
[1773327938767,9.89974465,85.74,85.661,9.53907982]
[1773327938974,9.89974465,85.74,85.663,9.53907982]
[1773327939573,10.498,85.715,85.664,9.53907982]
[1773327939874,9.89974465,85.739,85.664,9.53907982]
[1773327940074,9.89974465,85.739,85.665,40.42]
[1773327940268,9.89974465,85.739,85.667,10.504]
[1773327940269,10.498,85.717,85.667,10.504]
[1773327940470,9.89974465,85.739,85.665,40.42]
[1773327940673,9.89974465,85.739,85.666,40.42]
[1773327942166,9.89974465,85.739,85.648,9.53907982]
[1773327942367,9.89974465,85.739,85.649,40.4]
[1773327942668,9.89974465,85.713,85.65,9.53907982]
[1773327942972,20.987,85.754,85.661,9.53907982]
[1773327942973,9.89974465,85.739,85.661,9.53907982]
[1773327943170,9.89974465,85.739,85.66,9.33275503]
[1773327943171,9.89974465,85.739,85.663,9.53907982]
[1773327943368,9.89974465,85.739,85.665,9.76492923]
[1773327943876,10.497,85.722,85.677,9.76492923]
[1773327944073,10.497,85.722,85.651,28.9442087]
[1773327944074,9.93042903,85.756,85.681,9.76492923]
[1773327944276,9.93042903,85.756,85.683,9.76492923]
[1773327944868,9.93042903,85.756,85.698,9.76492923]
[1773327945074,9.93042903,85.779,85.698,9.76492923]
[1773327945474,9.93042903,85.779,85.699,40.4]
[1773327945675,10.494,85.749,85.701,10.5]
[1773327945875,10.494,85.749,85.702,9.76492923]
[1773327946478,9.93042903,85.759,85.713,10.498]
[1773327946674,9.93042903,85.779,85.712,9.76492923]
[1773327947472,9.93042903,85.779,85.72,10.497]
[1773327947672,9.93042903,85.779,85.721,40.4]
[1773327948872,9.93042903,85.779,85.712,9.76492923]
[1773327949077,9.93042903,85.779,85.713,40.4]
[1773327949277,9.93042903,85.752,85.703,40.4]
[1773327949775,10.494,85.747,85.695,9.76492923]
[1773327949971,9.93042903,85.752,85.696,40.4]
[1773327950879,10.494,85.745,85.698,10.5]
[1773327951278,9.93042903,85.752,85.696,40.4]
[1773327951472,9.93042903,85.752,85.695,9.76492923]
[1773327952380,10.494,85.746,85.697,10.5]
[1773327952778,9.93042903,85.752,85.695,9.76492923]
[1773327952981,9.93042903,85.752,85.68,9.33275503]
[1773327952982,9.93042903,85.752,85.68,9.83617708]
[1773327953382,9.93042903,85.752,85.689,10.501]
[1773327954983,10.495,85.738,85.689,10.501]
[1773327955183,9.93042903,85.752,85.68,9.83617708]
[1773327955184,9.93042903,85.752,85.696,9.83617708]
[1773327956085,10.495,85.738,85.696,9.83617708]
[1773327956285,9.93042903,85.752,85.696,9.83617708]
[1773327956788,9.93042903,85.752,85.704,10.499]
[1773327957886,9.93042903,85.752,85.696,20.33617708]
[1773327958288,9.93042903,85.752,85.696,9.83617708]
[1773327959091,9.96134446,85.779,85.701,9.83617708]
[1773327959992,9.96134446,85.779,85.721,9.83617708]
[1773327960295,9.96134446,85.795,85.723,9.83617708]
[1773327960589,9.96134446,85.795,85.725,9.83617708]
[1773327961095,9.96134446,85.795,85.732,10.496]
[1773327961497,10.49,85.78,85.732,10.496]
[1773327961686,9.96134446,85.795,85.739,10.495]
[1773327962492,10.489,85.789,85.742,10.494]
[1773327963397,9.96134446,85.823,85.753,9.83617708]
[1773327964197,20.964,85.846,85.739,11.90237744]
[1773327964198,9.96134446,85.803,85.739,9.83617708]
[1773327964398,9.96134446,85.799,85.735,40.4]
[1773327965100,9.96134446,85.799,85.723,9.83617708]
[1773327965296,10.49,85.779,85.728,40.4]
[1773327965790,9.96134446,85.801,85.729,9.83617708]
[1773327966393,10.488,85.799,85.747,9.83617708]
[1773327966791,9.96134446,85.801,85.751,9.83617708]
[1773327966996,9.96134446,85.819,85.751,9.83617708]
[1773327967696,10.486,85.809,85.766,10.491]
[1773327968199,10.486,85.809,85.758,10.492]
[1773327969196,9.96134446,85.809,85.723,9.83617708]
[1773327969396,9.96134446,85.809,85.7,9.33275503]
[1773327969397,9.96134446,85.809,85.725,9.83617708]
[1773327970699,10.489,85.79,85.742,10.494]
[1773327970904,9.96134446,85.809,85.742,10.494]
[1773327971103,9.96134446,85.809,85.725,9.83617708]
[1773327971401,9.96134446,85.809,85.724,40.38]
[1773327971402,9.96134446,85.822,85.765,9.83617708]
[1773327972404,10.485,85.821,85.767,9.83617708]
[1773327972598,9.96134446,85.82,85.727,9.83617708]
[1773327972800,9.96134446,85.819,85.731,9.83617708]
[1773327973104,9.96134446,85.798,85.732,40.38]
[1773327973397,9.96134446,85.798,85.733,9.83617708]
[1773327973596,9.96134446,85.819,85.733,9.83617708]
[1773327973799,9.96134446,85.819,85.741,9.83617708]
[1773327974197,10.487,85.801,85.761,10.492]
[1773327974406,9.96134446,85.819,85.758,40.38]
[1773327974608,9.96134446,85.819,85.75,40.38]
[1773327974805,9.96134446,85.797,85.746,40.38]
[1773327975402,9.96134446,85.819,85.747,9.83617708]
[1773327976004,10.487,85.807,85.748,10.494]
[1773327976310,9.96134446,85.819,85.748,10.494]
[1773327976311,9.96134446,85.819,85.748,9.83617708]
[1773327977602,9.96134446,85.819,85.749,9.83617708]
[1773327978209,9.96134446,85.819,85.751,9.83617708]
[1773327978414,10.486,85.811,85.759,9.83617708]
[1773327979412,9.96134446,85.819,85.75,40.38]